bitfinex/quotes_SOLUSD_20241202
["timestamp","ask_amount","ask_price","bid_price","bid_amount"]
[1733177819784,1.11602348,223.5,223.45,4.48]
[1733177821070,13.22285579,223.47,223.46,4.48]
[1733177821272,13.22285579,223.47,223.41,4.48]
[1733177821586,13.22285579,223.44,223.38,13.22285579]
[1733177821804,1.11634124,223.43,223.38,13.22285579]
[1733177823284,1.11634124,223.43,223.37,13.22285579]
[1733177824402,1.11634124,223.43,223.32,4.48]
[1733177824403,1.11634124,223.43,223.38,13.22285579]
[1733177824698,44.79015579,223.45,223.38,13.22285579]
[1733177824699,1.11633499,223.44,223.38,13.22285579]
[1733177825007,14.33919078,223.44,223.37,13.22285579]
[1733177825695,14.33919078,223.44,223.32,4.48]
[1733177825696,13.22285579,223.4,223.36,20.0]
[1733177825904,1.11648382,223.39,223.33,13.22285579]
[1733177826110,1.11648382,223.39,223.34,13.22285579]
[1733177826480,1.11648382,223.39,223.33,13.22285579]
[1733177828404,14.33933961,223.39,223.32,13.22285579]
[1733177829196,1.11648382,223.39,223.33,13.22285579]
[1733177830699,1.11648382,223.39,223.34,13.22285579]
[1733177830878,1.11654192,223.38,223.34,13.22285579]
[1733177831079,1.11655267,223.4,223.34,13.22285579]
[1733177831376,1.11655267,223.4,223.28,23.776884]
[1733177831377,1.1165431,223.44,223.39,13.22285579]
[1733177831582,1.1165431,223.44,223.4,13.22285579]
[1733177832513,1.11626304,223.48,223.43,17.70285579]
[1733177832812,1.11626304,223.48,223.45,4.48]
[1733177833310,1.11609537,223.49,223.47,4.48]
[1733177833504,30.1076,223.5,223.47,4.48]
[1733177833890,30.1076,223.5,223.47,17.70285579]
[1733177834211,1.11593889,223.52,223.49,4.48]
[1733177834593,1.11578805,223.54,223.49,4.48]
[1733177835508,1.11578805,223.54,223.5,4.48]
[1733177835686,33.26162685,223.55,223.51,13.22285579]
[1733177836015,1.11563944,223.57,223.53,17.70285579]
[1733177836309,1.11554592,223.59,223.53,17.70285579]
[1733177836488,1.11554592,223.59,223.53,13.22285579]
[1733177837110,1.11554592,223.59,223.54,23.776884]
[1733177837611,33.2953,223.6,223.57,13.22285579]
[1733177837788,1.11549561,223.63,223.57,13.22285579]
[1733177838114,1.11549561,223.63,223.54,23.776884]
[1733177838115,0.5251165,223.67,223.66,70.37647]
[1733177838320,18.0656,223.85,223.69,20.0]
[1733177838321,13.22285579,223.83,223.69,20.0]
[1733177838494,13.22285579,223.83,223.75,13.22285579]
[1733177839196,13.22285579,223.83,223.73,33.22285579]
[1733177839389,13.22285579,223.81,223.73,13.22285579]
[1733177839593,21.09876055,223.8,223.72,21.09876055]
[1733177840999,21.09876055,223.8,223.73,23.776884]
[1733177843297,21.09876055,223.82,223.75,23.776884]
[1733177845429,21.09876055,223.82,223.74,21.09876055]
[1733177848931,21.09876055,223.8,223.73,23.776884]
[1733177850413,21.09876055,223.82,223.74,21.09876055]
[1733177852306,21.09876055,223.8,223.74,21.09876055]
[1733177854813,21.09876055,223.82,223.74,21.09876055]
[1733177855939,21.09876055,223.84,223.76,21.09876055]
[1733177859038,21.09876055,223.84,223.77,23.776884]
[1733177859637,23.18153603,223.85,223.77,13.18153603]
[1733177860540,23.18153603,223.85,223.78,23.776884]
[1733177861537,13.18153603,223.83,223.78,23.776884]
[1733177861711,13.18153603,223.83,223.79,4.48]
[1733177862715,10.0,223.85,223.78,4.48]
[1733177862910,23.18153603,223.85,223.78,4.48]
[1733177863120,13.18153603,223.83,223.78,4.48]
[1733177865120,13.18153603,223.83,223.77,4.48]
[1733177865642,13.18153603,223.82,223.77,4.48]
[1733177866421,13.18153603,223.82,223.75,4.48]
[1733177867930,13.18153603,223.82,223.76,4.48]
[1733177870035,13.18153603,223.82,223.77,4.48]
[1733177870351,13.18153603,223.82,223.75,4.48]
[1733177875937,13.18153603,223.8,223.75,4.48]
[1733177877727,13.18153603,223.82,223.77,4.48]
[1733177877959,13.18153603,223.82,223.79,4.48]
[1733177878328,31.8193,223.84,223.79,4.48]
[1733177878329,45.00083603,223.84,223.79,4.48]
[1733177878554,13.18153603,223.84,223.79,4.48]
[1733177879341,10.0,223.85,223.79,4.48]
[1733177879636,10.0,223.85,223.74,23.776884]
[1733177879637,18.43634003,223.85,223.78,4.48]
[1733177879844,18.43634003,223.85,223.79,23.776884]
[1733177880258,18.43634003,223.85,223.79,28.256884]
[1733177883458,18.43634003,223.85,223.79,36.69322403]
[1733177883651,10.0,223.85,223.82,8.43634003]
[1733177883956,10.0,223.85,223.83,8.43634003]
[1733177884164,10.0,223.85,223.84,23.776884]
[1733177884551,10.0,223.85,223.83,8.43634003]
[1733177884874,10.0,223.85,223.84,32.21322403]
[1733177885037,10.0,223.85,223.84,36.69322403]
[1733177887546,10.0,223.85,223.84,32.21322403]
[1733177887748,10.0,223.85,223.84,36.67822403]
[1733177890058,10.0,223.85,223.84,36.92920403]
[1733177890264,0.5251165,223.89,223.88,120.32920403]
[1733177890657,0.5251165,223.89,223.88,125.32920403]
[1733177891263,0.5251165,223.89,223.88,141.91190403]
[1733177892144,0.0429398,223.89,223.88,141.91190403]
[1733177895593,0.0429398,223.89,223.88,136.78641403]
[1733177895750,0.0429398,223.89,223.88,66.66092403]
[1733177895951,0.0429398,223.89,223.88,53.26092403]
[1733177896147,0.0429398,223.89,223.88,12.90134003]
[1733177896351,0.0429398,223.89,223.83,29.4357]
[1733177896575,0.0429398,223.89,223.85,8.43634003]
[1733177897084,0.0429398,223.89,223.86,0.89105235]
[1733177897655,0.0429398,223.89,223.88,12.90134003]
[1733177898063,0.0429398,223.89,223.88,36.67822403]
[1733177899590,32.816,224.08,224.0,20.0]
[1733177899749,32.816,224.08,224.01,5.35534065]
[1733177900080,32.816,224.08,224.03,12.90134003]
[1733177900282,32.816,224.08,224.01,0.89034065]
[1733177900489,32.816,224.08,224.02,8.43634003]
[1733177900776,32.816,224.08,224.03,4.465]
[1733177901281,0.5251165,224.11,224.02,20.0]
[1733177901455,0.5251165,224.11,224.04,8.43634003]
[1733177901653,0.5251165,224.11,224.05,4.465]
[1733177901856,13.14992684,224.1,224.05,4.465]
[1733177902667,13.14992684,224.08,224.03,4.465]
[1733177903657,13.14992684,224.08,224.01,5.35543519]
[1733177904484,13.14992684,224.1,224.03,4.465]
[1733177904780,13.14992684,224.1,224.03,5.35532693]
[1733177905379,13.14992684,224.1,224.03,4.465]
[1733177906454,13.14992684,224.08,224.01,28.241884]
[1733177909856,13.14992684,224.08,224.01,41.39181084]
[1733177910484,13.14992684,224.08,224.01,28.241884]
[1733177911483,0.5251165,224.11,224.05,4.465]
[1733177911484,13.67504334,224.11,224.05,4.465]
[1733177911792,13.67504334,224.11,224.07,4.465]
[1733177914006,13.14992684,224.1,224.08,4.465]
[1733177914882,13.67504334,224.11,224.08,4.465]
[1733177915083,13.67504334,224.11,224.09,4.465]
[1733177916115,0.5251165,224.11,224.1,4.465]
[1733177916319,13.67504334,224.11,224.1,4.465]
[1733177917117,13.67504334,224.11,224.05,4.465]
[1733177917810,13.67504334,224.11,224.07,4.465]
[1733177918114,0.5251165,224.11,224.08,4.465]
[1733177919415,0.5251165,224.11,224.09,4.465]
[1733177919808,13.67504334,224.11,224.09,4.465]
[1733177920509,13.67504334,224.11,224.1,4.465]
[1733177920710,13.67504334,224.11,224.04,4.465]
[1733177920928,13.14992684,224.09,224.04,4.465]
[1733177921103,13.14992684,224.1,224.04,4.465]
[1733177921633,13.67504334,224.11,224.04,17.61492684]
[1733177923707,8.94133724,224.11,224.04,12.88122074]
[1733177925105,0.5251165,224.11,224.05,8.41622074]
[1733177925918,0.5251165,224.11,224.09,20.0]
[1733177926123,0.5251165,224.11,224.1,28.41622074]
[1733177926423,0.5251165,224.11,224.05,16.5827]
[1733177926424,0.5251165,224.11,224.06,20.0]
[1733177926729,0.5251165,224.11,224.07,8.41622074]
[1733177928910,0.5251165,224.11,224.0,96.1558]
[1733177928911,0.5251165,224.11,224.1,8.41622074]
[1733177929436,0.5251165,224.11,224.09,8.41622074]
[1733177930720,0.5251165,224.11,224.09,4.465]
[1733177930925,0.5251165,224.11,224.09,8.41622074]
[1733177931119,0.5251165,224.11,224.05,4.465]
[1733177931317,0.5251165,224.11,224.05,12.88122074]
[1733177934532,8.94133724,224.11,224.04,12.88122074]
[1733177934730,39.52903724,224.11,224.04,4.465]
[1733177934904,31.1128165,224.11,224.04,4.465]
[1733177935105,39.52903724,224.11,224.04,4.465]
[1733177936113,8.41622074,224.1,224.03,4.465]
[1733177936510,8.41622074,224.09,224.03,4.465]
[1733177936708,8.41622074,224.08,224.03,4.465]
[1733177937228,31.1128165,224.11,224.02,4.465]
[1733177937229,8.41622074,224.05,224.02,4.465]
[1733177937440,8.41622074,224.04,224.02,4.465]
[1733177937644,8.41622074,224.05,223.98,8.41622074]
[1733177937936,8.41622074,224.05,223.99,4.465]
[1733177938305,8.41622074,224.03,223.95,0.89055335]
[1733177938540,8.41622074,224.03,223.96,8.41622074]
[1733177938910,8.41622074,223.98,223.93,0.89057575]
[1733177939110,8.41622074,223.96,223.89,8.41622074]
[1733177939809,30.5877,224.01,223.91,8.41622074]
[1733177940010,8.41622074,223.98,223.92,4.465]
[1733177940529,8.41622074,223.97,223.9,8.41622074]
[1733177940840,8.41622074,223.96,223.89,8.41622074]
[1733177941130,8.41622074,223.95,223.89,4.465]
[1733177941327,8.41622074,223.94,223.89,4.465]
[1733177941513,8.41622074,223.94,223.88,8.41622074]
[1733177941714,23.3346,224.0,223.88,8.41622074]
[1733177941926,8.41622074,223.95,223.88,8.41622074]
[1733177942441,8.41622074,223.93,223.83,12.2481]
[1733177942742,8.41622074,223.93,223.86,8.41622074]
[1733177943044,8.41622074,223.92,223.85,8.41622074]
[1733177943207,8.41622074,223.91,223.84,8.41622074]
[1733177943540,8.41622074,223.92,223.85,8.41622074]
[1733177943842,8.41622074,223.92,223.81,20.0]
[1733177944013,8.41622074,223.92,223.79,0.89105793]
[1733177944014,8.41622074,223.92,223.83,20.0]
[1733177944215,8.41622074,223.92,223.85,8.41622074]
[1733177945238,1.1519931,223.93,223.86,8.41622074]
[1733177945414,15.04117342,224.0,223.92,8.41622074]
[1733177945415,12.1738,224.0,223.92,8.41622074]
[1733177945619,8.41622074,223.99,223.92,8.41622074]
[1733177946409,8.41622074,223.98,223.91,8.41622074]
[1733177946928,12.1738,224.0,223.83,20.0]
[1733177946929,8.41622074,223.96,223.83,20.0]
[1733177947134,8.41622074,223.94,223.87,8.41622074]
[1733177947333,8.41622074,223.94,223.84,20.0]
[1733177947506,8.41622074,223.94,223.82,0.89095916]
[1733177947507,11.1613,223.99,223.87,13.17043883]
[1733177947713,13.17043883,223.94,223.87,13.17043883]
[1733177948023,13.17043883,223.92,223.85,13.17043883]
[1733177948225,13.17043883,223.93,223.86,13.17043883]
[1733177948439,13.17043883,223.95,223.88,13.17043883]
[1733177949523,13.17043883,223.95,223.83,20.0]
[1733177949723,13.17043883,223.95,223.88,13.17043883]
[1733177951137,13.17043883,223.94,223.87,13.17043883]
[1733177951623,13.17043883,223.94,223.88,4.465]
[1733177952247,13.17043883,223.93,223.88,4.465]
[1733177952649,13.17043883,223.91,223.83,20.0]
[1733177952948,13.17043883,223.91,223.83,33.17043883]
[1733177953614,13.17043883,223.91,223.84,4.465]
[1733177954954,13.17043883,223.9,223.84,4.465]
[1733177955148,13.17043883,223.89,223.84,4.465]
[1733177955454,13.17043883,223.88,223.84,4.465]
[1733177955626,13.17043883,223.88,223.82,4.465]
[1733177955828,13.17043883,223.87,223.81,4.465]
[1733177956446,13.17043883,223.88,223.81,17.63543883]
[1733177956647,12.7433,223.91,223.81,4.465]
[1733177956648,13.17043883,223.87,223.81,4.465]
[1733177957426,13.17043883,223.88,223.81,17.63543883]
[1733177957752,13.17043883,223.87,223.81,4.465]
[1733177958052,13.17043883,223.86,223.81,4.465]
[1733177958637,13.17043883,223.86,223.8,4.465]
[1733177959151,25.91373883,223.91,223.84,4.465]
[1733177960253,31.6027,223.92,223.87,13.17043883]
[1733177960428,31.6027,223.92,223.89,13.17043883]
[1733177961060,13.17043883,223.96,223.89,13.17043883]
[1733177961556,13.17043883,223.95,223.88,13.17043883]
[1733177961858,13.17043883,223.94,223.89,4.465]
[1733177962530,13.17043883,223.94,223.82,12.1895]
[1733177962531,13.17043883,223.91,223.84,17.63543883]
[1733177962756,13.17043883,223.89,223.84,4.465]
[1733177962938,24.33313883,223.96,223.81,13.17043883]
[1733177962939,13.17043883,223.88,223.81,13.17043883]
[1733177963131,13.07043883,223.88,223.81,13.17043883]
[1733177963756,13.07043883,223.88,223.81,17.63543883]
[1733177964262,13.17043883,223.89,223.81,17.63543883]
[1733177964431,13.17043883,223.89,223.82,13.17043883]
[1733177964840,13.17043883,223.91,223.84,17.63543883]
[1733177965033,13.17043883,223.95,223.88,13.17043883]
[1733177965449,13.17043883,223.94,223.87,17.63543883]
[1733177965642,11.1627,223.96,223.88,13.17043883]
[1733177965643,13.17043883,223.95,223.88,13.17043883]
[1733177966371,13.17043883,223.94,223.87,17.63543883]
[1733177967242,13.17043883,223.95,223.87,17.63543883]
[1733177967448,44.98143883,223.97,223.9,4.465]
[1733177967655,31.811,223.97,223.9,17.63543883]
[1733177968469,13.17043883,223.95,223.9,4.465]
[1733177968771,13.17043883,223.93,223.87,4.465]
[1733177968975,13.17043883,223.92,223.87,4.465]
[1733177969442,13.17043883,223.92,223.84,13.17043883]
[1733177969443,13.17043883,223.92,223.85,4.465]
[1733177970870,13.17043883,223.92,223.84,17.63543883]
[1733177971034,31.8391,223.99,223.87,13.17043883]
[1733177971240,13.17043883,223.96,223.88,13.17043883]
[1733177971463,13.17043883,223.95,223.88,13.17043883]
[1733177971668,13.17043883,223.94,223.87,13.17043883]
[1733177971976,13.17043883,223.93,223.87,4.465]
[1733177972172,13.17043883,223.94,223.87,17.63543883]
[1733177973580,13.17043883,223.98,223.91,4.465]
[1733177973947,31.8391,223.99,223.93,4.465]
[1733177974169,13.17043883,224.0,223.93,4.465]
[1733177975573,13.17043883,223.94,223.87,4.465]
[1733177975765,13.17043883,223.9,223.87,4.465]
[1733177975966,13.17043883,223.89,223.87,4.465]
[1733177976280,13.17043883,223.88,223.87,4.465]
[1733177976488,13.17043883,223.88,223.8,13.17043883]
[1733177976489,13.17043883,223.88,223.81,4.465]
[1733177976685,13.17043883,223.88,223.81,17.63543883]
[1733177977014,13.17043883,223.87,223.81,4.465]
[1733177977452,13.17043883,223.87,223.79,13.17043883]
[1733177977453,13.17043883,223.87,223.8,4.465]
[1733177980287,13.17043883,223.87,223.81,4.465]
[1733177980481,13.17043883,223.85,223.82,4.465]
[1733177981489,13.17043883,223.85,223.79,4.465]
[1733177982796,13.17043883,223.86,223.79,4.465]
[1733177982978,13.17043883,223.86,223.8,4.465]
[1733177983464,11.1659,223.9,223.8,17.63543883]
[1733177983465,13.17043883,223.87,223.8,17.63543883]
[1733177985563,13.17043883,223.87,223.76,12.8562]
[1733177985564,13.17043883,223.88,223.82,4.465]
[1733177991198,11.1659,223.9,223.82,4.465]
[1733177991495,13.17043883,223.87,223.81,4.465]
[1733177991692,8.43427106,223.87,223.81,4.465]
[1733177992797,8.43427106,223.83,223.77,4.465]
[1733177994194,8.43427106,223.82,223.73,20.0]
[1733177994405,8.43427106,223.82,223.76,4.465]
[1733177994776,8.43427106,223.82,223.75,8.43427106]
[1733177995503,8.43427106,223.82,223.76,4.465]
[1733177995879,8.43427106,223.82,223.75,8.43427106]
[1733177996405,11.167,223.88,223.75,8.43427106]
[1733177996578,8.43427106,223.82,223.76,4.465]
[1733177996986,8.43427106,223.83,223.77,4.465]
[1733177997503,41.8242,223.9,223.8,8.43427106]
[1733177997676,8.43427106,223.87,223.8,8.43427106]
[1733177999689,13.17810787,223.87,223.81,4.465]
[1733177999887,13.17810787,223.86,223.81,4.465]
[1733178000605,13.17810787,223.86,223.8,4.465]
[1733178002707,55.00230787,223.9,223.84,4.465]
[1733178003083,23.17810787,223.9,223.84,4.465]
[1733178003309,10.0,223.9,223.84,4.465]
[1733178004388,23.17810787,223.9,223.83,4.465]
[1733178005291,23.17810787,223.9,223.8,0.89132759]
[1733178005526,23.17810787,223.9,223.83,4.465]
[1733178005698,10.0,223.9,223.83,17.64310787]
[1733178005892,10.0,223.9,223.84,13.17810787]
[1733178006092,10.0,223.9,223.85,13.17810787]
[1733178006295,10.0,223.9,223.86,4.465]
[1733178006685,10.0,223.9,223.88,13.17810787]
[1733178006891,10.0,223.9,223.89,13.17810787]
[1733178007198,10.0,223.9,223.87,13.17810787]
[1733178007402,10.0,223.9,223.88,4.465]
[1733178007891,10.0,223.9,223.87,4.465]
[1733178008889,10.0,223.9,223.87,17.64310787]
[1733178010596,23.17810787,223.9,223.86,4.465]
[1733178011191,27.319,224.03,223.86,4.465]
[1733178011192,31.6331,224.07,223.96,12.6554]
[1733178011414,13.17810787,224.03,223.96,25.83350787]
[1733178011614,31.6331,224.07,223.97,4.465]
[1733178011916,13.17810787,224.03,223.97,4.465]
[1733178013414,13.17810787,224.03,223.96,4.465]
[1733178013715,13.17810787,224.02,223.96,4.465]
[1733178014715,13.17810787,224.01,223.96,4.465]
[1733178014909,13.17810787,224.01,223.97,4.465]
[1733178016018,13.17810787,224.01,223.95,4.465]
[1733178016317,13.17810787,224.03,223.97,4.465]
[1733178018396,42.7904,224.07,223.93,5.35555614]
[1733178018397,13.17810787,223.98,223.93,5.35555614]
[1733178018600,12.3027,224.04,223.89,17.64310787]
[1733178018601,13.17810787,223.95,223.89,17.64310787]
[1733178019005,13.17810787,223.96,223.89,17.64310787]
[1733178021216,13.17810787,223.96,223.89,17.64310787]
[1733178021615,8.42741268,223.96,223.9,4.465]
[1733178022128,8.42741268,223.95,223.9,4.465]
[1733178022316,11.1594,224.03,223.9,4.465]
[1733178022708,8.42741268,223.97,223.91,4.465]
[1733178022911,8.42741268,223.97,223.88,20.0]
[1733178023120,8.42741268,223.97,223.91,4.465]
[1733178024502,11.1594,224.03,223.91,4.465]
[1733178024915,8.42741268,223.97,223.91,4.465]
[1733178025535,11.1594,224.03,223.91,4.465]
[1733178025710,8.42741268,223.97,223.91,4.465]
[1733178026409,8.42741268,223.96,223.91,4.465]
[1733178030014,8.42741268,223.97,223.91,12.89241268]
[1733178031543,8.42741268,223.98,223.91,12.89241268]
[1733178032440,11.1594,224.03,223.91,12.89241268]
[1733178032640,63.9475,224.07,223.94,8.42741268]
[1733178032641,76.50025072,224.07,223.94,8.42741268]
[1733178032810,42.7906,224.07,223.95,32.20429668]
[1733178033131,8.42741268,224.02,223.95,32.20429668]
[1733178034331,42.7906,224.07,223.95,32.20429668]
[1733178034547,8.42741268,224.02,223.95,32.20429668]
[1733178034910,31.6331,224.07,223.98,8.42741268]
[1733178035134,31.6331,224.07,224.01,8.42741268]
[1733178035723,31.6331,224.07,224.02,8.42741268]
[1733178036036,31.6331,224.07,224.01,8.42741268]
[1733178036733,8.42741268,224.08,224.01,8.42741268]
[1733178037539,8.42741268,224.07,224.0,8.42741268]
[1733178038439,11.1557,224.1,224.0,23.776884]
[1733178038745,8.42741268,224.06,224.0,23.776884]
[1733178040251,8.42741268,224.05,223.99,23.776884]
[1733178044145,8.42741268,224.05,223.98,23.776884]
[1733178044330,8.42741268,224.05,223.98,32.20429668]
[1733178045616,8.42741268,224.04,223.98,23.776884]
[1733178047143,8.42741268,224.03,223.98,23.776884]
[1733178047321,8.42741268,224.03,223.97,23.776884]
[1733178048149,8.42741268,224.03,223.97,34.932584]
[1733178049955,8.42741268,224.01,223.95,23.776884]
[1733178051451,8.42741268,224.02,223.95,32.20429668]
[1733178051744,8.42741268,224.05,223.98,32.20429668]
[1733178052549,8.42741268,224.04,223.97,32.20429668]
[1733178055026,8.42741268,224.03,223.97,23.776884]
[1733178055451,8.42741268,224.04,223.97,32.20429668]
[1733178056253,0.5251165,224.11,224.0,32.20429668]
[1733178056546,8.42741268,224.08,224.0,32.20429668]
[1733178057345,8.42741268,224.09,224.02,8.42741268]
[1733178057551,8.42741268,224.09,224.02,23.776884]
[1733178059142,8.95252918,224.11,224.04,32.20429668]
[1733178059332,0.5251165,224.11,224.04,23.776884]
[1733178059652,8.95252918,224.11,224.04,32.20429668]
[1733178060220,8.95252918,224.11,224.04,23.776884]
[1733178060924,8.95252918,224.11,224.04,32.20429668]
[1733178062427,0.5251165,224.11,224.04,32.20429668]
[1733178064737,0.5251165,224.11,224.05,8.42741268]
[1733178064930,0.5251165,224.11,224.08,23.776884]
[1733178065331,0.5251165,224.11,224.07,23.776884]
[1733178065959,0.5251165,224.11,224.07,28.241884]
[1733178066463,0.5251165,224.11,224.07,36.66929668]
[1733178067852,0.5251165,224.11,224.07,23.776884]
[1733178068038,0.5251165,224.11,224.07,28.241884]
[1733178068353,0.5251165,224.11,224.08,8.42741268]
[1733178071981,0.5251165,224.11,224.09,4.465]
[1733178074655,0.5251165,224.11,224.09,8.42741268]
[1733178074840,0.5251165,224.11,224.08,8.42741268]
[1733178078163,0.5251165,224.11,224.09,8.42741268]
[1733178080407,0.5251165,224.11,224.1,8.42741268]
[1733178089459,0.5251165,224.11,224.1,12.89241268]
[1733178089659,0.5251165,224.11,224.1,36.66929668]
[1733178090801,0.5251165,224.11,224.1,37.55916721]
[1733178092258,0.5251165,224.11,224.1,37.68465721]
[1733178092673,0.02420183,224.11,224.1,37.68465721]
[1733178095791,0.02420183,224.11,224.1,37.55916721]
[1733178098902,0.02420183,224.11,224.1,29.13175453]
[1733178099486,0.02420183,224.11,224.1,37.55916721]
[1733178099689,0.02420183,224.11,224.1,29.13175453]
[1733178099873,0.02420183,224.11,224.1,36.66929668]
[1733178100076,0.02420183,224.11,224.1,28.241884]
[1733178100270,0.02420183,224.11,224.1,36.66929668]
[1733178102082,0.02420183,224.11,224.1,37.55919715]
[1733178102699,0.00093697,224.11,224.1,37.55919715]
[1733178106075,30.8097,224.22,224.12,4.465]
[1733178106279,30.8097,224.22,224.12,5.3547999]
[1733178106475,30.8097,224.22,224.17,8.42741268]
[1733178107383,30.8097,224.22,224.18,8.42741268]
[1733178107575,30.8097,224.22,224.17,8.42741268]
[1733178113505,30.8097,224.22,224.16,8.42741268]
[1733178114583,30.8097,224.22,224.17,8.42741268]
[1733178125490,30.8097,224.22,224.18,8.42741268]
[1733178125694,30.8097,224.22,224.19,4.465]
[1733178126012,30.8097,224.22,224.18,8.42741268]
[1733178127210,30.8097,224.22,224.19,4.465]
[1733178128816,30.8097,224.22,224.13,0.88978609]
[1733178128994,30.8097,224.22,224.18,8.42741268]
[1733178130422,30.8097,224.22,224.19,4.465]
[1733178132595,30.8097,224.22,224.21,8.42741268]
[1733178132790,30.8097,224.22,224.21,32.20429668]
[1733178134119,30.8097,224.22,224.21,36.66929668]
[1733178134313,12.5704,224.26,224.21,32.20429668]
[1733178134528,12.5704,224.26,224.24,8.42741268]
[1733178136224,12.5704,224.26,224.25,4.465]
[1733178136393,31.8857,224.27,224.25,8.42741268]
[1733178138218,31.8857,224.27,224.26,8.42741268]
[1733178139496,31.9537,224.32,224.27,23.776884]
[1733178140020,31.9537,224.32,224.25,23.776884]
[1733178140194,31.9537,224.32,224.3,8.42741268]
[1733178140402,31.9537,224.32,224.31,23.776884]
[1733178142731,31.9537,224.32,224.29,23.776884]
[1733178143205,31.9537,224.32,224.25,20.0]
[1733178143410,31.9537,224.32,224.24,0.88936633]
[1733178143725,31.9537,224.32,224.28,8.42741268]
[1733178144302,31.9537,224.32,224.29,8.42741268]
[1733178144505,31.9537,224.32,224.3,23.776884]
[1733178146597,31.9537,224.32,224.31,28.241884]
[1733178147017,31.9537,224.32,224.31,23.776884]
[1733178147221,31.9537,224.32,224.29,23.776884]
[1733178148006,31.9537,224.32,224.28,23.776884]
[1733178148204,31.9537,224.32,224.27,23.776884]
[1733178148407,40.38111268,224.32,224.27,23.776884]
[1733178148608,8.42741268,224.31,224.27,23.776884]
[1733178148807,8.42741268,224.31,224.24,8.42741268]
[1733178149014,31.9537,224.32,224.25,8.42741268]
[1733178149332,40.38111268,224.32,224.26,4.465]
[1733178150025,40.38111268,224.32,224.27,23.776884]
[1733178150231,8.42741268,224.31,224.25,28.241884]
[1733178150821,8.42741268,224.29,224.25,23.776884]
[1733178151004,8.42741268,224.29,224.22,8.42741268]
[1733178151202,8.42741268,224.29,224.23,4.465]
[1733178152527,31.9537,224.32,224.23,4.465]
[1733178152731,8.42741268,224.24,224.1,74.465]
[1733178153025,8.42741268,224.21,224.14,8.42741268]
[1733178153235,8.42741268,224.22,224.15,8.42741268]
[1733178153535,8.42741268,224.23,224.16,8.42741268]
[1733178154207,45.1586,224.28,224.22,8.42741268]
[1733178154406,45.1586,224.28,224.2,0.88961053]
[1733178154607,45.1586,224.28,224.18,24.66645978]
[1733178154906,45.1586,224.28,224.23,4.465]
[1733178155409,45.1586,224.28,224.22,8.42741268]
[1733178156932,45.1586,224.28,224.18,24.66645978]
[1733178157162,45.1586,224.28,224.22,8.42741268]
[1733178158053,45.1586,224.28,224.23,4.465]
[1733178158205,45.1586,224.28,224.23,8.42741268]
[1733178158410,45.1586,224.28,224.24,8.42741268]
[1733178158741,32.4318,224.28,224.24,8.42741268]
[1733178159232,32.4318,224.28,224.25,4.465]
[1733178160312,32.4318,224.28,224.27,0.3515963]
[1733178162840,12.6869165,224.33,224.27,0.3515963]
[1733178163136,0.5251165,224.33,224.29,8.42741268]
[1733178163934,0.5251165,224.33,224.3,4.465]
[1733178164439,0.5251165,224.33,224.31,4.465]
[1733178164843,0.5251165,224.33,224.3,8.42741268]
[1733178165022,0.5251165,224.33,224.31,4.465]
[1733178165222,0.5251165,224.33,224.3,8.42741268]
[1733178165842,0.5251165,224.33,224.29,8.42741268]
[1733178166051,0.5251165,224.33,224.3,4.465]
[1733178170128,0.5251165,224.33,224.32,8.42741268]
[1733178170328,0.5251165,224.33,224.31,8.42741268]
[1733178172024,0.5251165,224.33,224.32,4.465]
[1733178172425,0.5251165,224.33,224.31,8.42741268]
[1733178172644,0.5251165,224.33,224.32,4.465]
[1733178174244,0.5251165,224.33,224.31,5.35414337]
[1733178176851,0.5251165,224.33,224.32,28.241884]
[1733178182333,0.5251165,224.33,224.29,4.465]
[1733178182760,0.5251165,224.33,224.31,4.465]
[1733178183757,0.5251165,224.33,224.3,23.776884]
[1733178183955,0.5251165,224.33,224.31,4.465]
[1733178184857,0.5251165,224.33,224.29,23.776884]
[1733178184858,0.5251165,224.33,224.3,4.465]
[1733178186154,0.5251165,224.33,224.32,4.465]
[1733178186965,0.5251165,224.33,224.32,4.455]
[1733178187567,0.5251165,224.33,224.3,4.455]
[1733178187863,0.5251165,224.33,224.32,4.455]